fUSD/lending_fUSD_20241110
["ID","MTS","AMOUNT","RATE_DAILY","PERIOD"]
[341893655,1731273038717,-150.0,0.00014178,2]
[341893656,1731273038727,-150.0,0.00014178,2]
[341893657,1731273038736,-4100.0,0.000142,5]
[341893658,1731273038746,-255.0,0.00014243,2]
[341893659,1731273038754,-2863.11,0.00014247,2]
[341893660,1731273038763,-432.81,0.00014278,2]
[341893661,1731273038773,-5100.0,0.000143,5]
[341893663,1731273038782,-1000.0,0.000144,5]
[341893673,1731273039029,-326.57,0.00014432,2]
[341893674,1731273039039,-150.0,0.00014441,2]
[341893675,1731273039048,-1000.0,0.000145,5]
[341893676,1731273039059,-150.0,0.00014538,2]
[341893677,1731273039072,-1090.0,0.00014538,2]
[341893678,1731273039081,-157.14,0.00014544,2]
[341893679,1731273039091,-250.0,0.00014583,2]
[341893681,1731273039101,-150.0,0.00014583,2]
[341893683,1731273039111,-150.0,0.00014583,2]
[341893684,1731273039120,-150.0,0.00014583,2]
[341893685,1731273039131,-150.0,0.00014583,2]
[341893686,1731273039141,-2910.0,0.00014583,2]
[341893688,1731273039150,-509.109,0.00014583,2]
[341893690,1731273039160,-18385.564,0.000146,2]
[341893691,1731273039170,-640.8334,0.000146,2]
[341893692,1731273039183,-1000.0,0.000146,5]
[341893693,1731273039192,-207.2356,0.00014695,2]
[341893694,1731273039202,-1000.0,0.00014697,2]
[341893695,1731273039211,-2500.0,0.00014697,2]
[341893696,1731273039221,-383.1849,0.00014698,2]
[341893697,1731273039231,-207.22,0.00014699,2]
[341893698,1731273039241,-1000.0,0.000147,5]
[341893699,1731273039250,-310.17,0.0001474,3]
[341893700,1731273039259,-155.09,0.0001474,3]
[341893701,1731273039268,-465.27,0.0001474,3]
[341893702,1731273039278,-48083.56879175,0.0001475,2]
[341893703,1731273039288,-588.28923009,0.00014789,2]
[341893704,1731273039297,-1560.65,0.00014796,2]
[341893705,1731273039308,-500.0,0.00014796,2]
[341893706,1731273039319,-728.5,0.00014796,2]
[341893707,1731273039329,-760.39,0.00014796,2]
[341893708,1731273039339,-843.58,0.00014796,2]
[341893709,1731273039348,-500.0,0.00014796,2]
[341893710,1731273039357,-3829.65,0.00014796,2]
[341893711,1731273039366,-662.14,0.00014796,2]
[341893712,1731273039375,-2060.6,0.00014796,2]
[341893713,1731273039385,-500.0,0.00014796,2]
[341893714,1731273039395,-1847.86,0.00014796,2]
[341893715,1731273039404,-1051.96,0.00014797,2]
[341893716,1731273039413,-500.0,0.00014797,2]
[341893717,1731273039423,-500.0,0.00014797,2]
[341893718,1731273039436,-500.0,0.00014797,2]
[341893719,1731273039444,-500.0,0.00014797,2]
[341893720,1731273039453,-500.0,0.00014797,2]
[341893721,1731273039461,-500.0,0.00014797,2]
[341893722,1731273039471,-500.0,0.00014797,2]
[341893723,1731273039480,-770.68,0.00014797,2]
[341893724,1731273039489,-1658.94,0.00014797,2]
[341893725,1731273039499,-2211.19,0.00014797,2]
[341893726,1731273039508,-500.0,0.00014797,2]
[341893727,1731273039518,-2281.93,0.00014797,2]
[341893728,1731273039527,-992.29,0.00014797,2]
[341893729,1731273039537,-500.0,0.00014797,2]
[341893730,1731273039546,-1278.52,0.00014797,2]
[341893731,1731273039556,-644.42,0.00014797,2]
[341893732,1731273039565,-500.0,0.00014797,2]
[341893733,1731273039575,-3290.7,0.00014797,2]
[341893734,1731273039585,-1646.22,0.00014797,2]
[341893735,1731273039595,-766.34,0.00014797,2]
[341893736,1731273039605,-4341.09,0.00014797,2]
[341893737,1731273039615,-3111.24,0.00014797,2]
[341893738,1731273039624,-864.8,0.00014797,2]
[341893739,1731273039633,-477.53,0.00014797,2]
[341893740,1731273039643,-4022.83,0.00014797,2]
[341893741,1731273039652,-557.14,0.00014797,2]
[341893742,1731273039661,-500.0,0.00014797,2]
[341893743,1731273039672,-860.82,0.00014797,2]
[341893744,1731273039684,-500.0,0.00014797,2]
[341893745,1731273039693,-3281.28,0.00014797,2]
[341893746,1731273039703,-500.0,0.00014797,2]
[341893747,1731273039712,-500.0,0.00014797,2]
[341893748,1731273039722,-1216.13,0.00014797,2]
[341893749,1731273039731,-500.0,0.00014797,2]
[341893750,1731273039740,-500.0,0.00014797,2]
[341893751,1731273039749,-500.0,0.00014797,2]
[341893752,1731273039759,-500.0,0.00014797,2]
[341893753,1731273039768,-2092.75,0.00014797,2]
[341893754,1731273039777,-2579.96,0.00014797,2]
[341893755,1731273039786,-510.56,0.00014797,2]
[341893757,1731273039796,-500.0,0.00014797,2]
[341893758,1731273039805,-2590.03,0.00014797,2]
[341893760,1731273039816,-500.0,0.00014797,2]
[341893761,1731273039826,-5334.52,0.00014797,2]
[341893762,1731273039837,-2214.99,0.00014797,2]
[341893763,1731273039847,-1937.99,0.00014797,2]
[341893764,1731273039856,-1534.75,0.00014797,2]
[341893765,1731273039866,-1941.54,0.00014797,2]
[341893766,1731273039876,-500.0,0.00014797,2]
[341893769,1731273039886,-500.0,0.00014797,2]
[341893771,1731273039894,-500.0,0.00014797,2]
[341893772,1731273039903,-2043.94,0.00014797,2]
[341893773,1731273039913,-3690.94,0.00014797,2]
[341893774,1731273039923,-1454.43,0.00014797,2]
[341893775,1731273039935,-834.77,0.00014797,2]
[341893777,1731273039946,-500.0,0.00014797,2]
[341893778,1731273039956,-500.0,0.00014798,2]
[341893779,1731273039966,-508.17,0.00014798,2]
[341893780,1731273039976,-500.0,0.00014798,2]
[341893781,1731273039986,-500.0,0.00014798,2]
[341893782,1731273039996,-500.0,0.00014798,2]
[341893783,1731273040006,-500.0,0.00014798,2]
[341893784,1731273040019,-189.49956549,0.00014798,2]
[341893785,1731273040029,-500.0,0.00014798,2]
[341893786,1731273040038,-500.0,0.00014798,2]
[341893787,1731273040048,-500.0,0.00014798,2]
[341893788,1731273040060,-500.0,0.00014798,2]
[341893789,1731273040071,-500.0,0.00014798,2]
[341893790,1731273040080,-500.0,0.00014798,2]
[341893791,1731273040090,-500.0,0.00014798,2]
[341893792,1731273040098,-500.0,0.00014798,2]
[341893793,1731273040108,-500.0,0.00014798,2]
[341893794,1731273040118,-527.18,0.00014798,2]
[341893795,1731273040127,-1845.52,0.00014798,2]
[341893796,1731273040136,-500.0,0.00014798,2]
[341893797,1731273040146,-500.0,0.00014798,2]
[341893798,1731273040156,-500.0,0.00014798,2]
[341893799,1731273040166,-901.35,0.00014798,2]
[341893800,1731273040176,-500.0,0.00014798,2]
[341893801,1731273040190,-500.0,0.00014798,2]
[341893802,1731273040199,-554.04,0.00014798,2]
[341893803,1731273040208,-500.0,0.00014798,2]
[341893804,1731273040217,-500.0,0.00014798,2]
[341893805,1731273040226,-500.0,0.00014798,2]
[341893806,1731273040236,-500.0,0.00014798,2]
[341893807,1731273040246,-1267.02,0.00014798,2]
[341893808,1731273040254,-643.36,0.00014798,2]
[341893809,1731273040263,-500.0,0.00014798,2]
[341893810,1731273040272,-500.0,0.00014798,2]
[341893811,1731273040282,-500.0,0.00014798,2]
[341893812,1731273040291,-280.2,0.00014798,2]
[341893813,1731273040300,-500.0,0.00014798,2]
[341893814,1731273040309,-500.0,0.00014798,2]
[341893815,1731273040319,-500.0,0.00014798,2]
[341893816,1731273040328,-500.0,0.00014798,2]
[341893817,1731273040337,-500.0,0.00014798,2]
[341893818,1731273040346,-500.0,0.00014798,2]
[341893819,1731273040355,-500.0,0.00014798,2]
[341893820,1731273040365,-500.0,0.00014798,2]
[341893821,1731273040374,-500.0,0.00014798,2]
[341893822,1731273040383,-500.0,0.00014798,2]
[341893823,1731273040392,-500.0,0.00014798,2]
[341893824,1731273040401,-500.0,0.00014798,2]
[341893825,1731273040411,-534.08413651,0.00014798,2]
[341893826,1731273040420,-1081.57,0.00014798,2]
[341893827,1731273040429,-500.0,0.00014798,2]
[341893828,1731273040441,-500.0,0.00014798,2]
[341893829,1731273040451,-500.0,0.00014798,2]
[341893830,1731273040461,-500.0,0.00014798,2]
[341893831,1731273040471,-500.0,0.00014798,2]
[341893832,1731273040480,-500.0,0.00014798,2]
[341893833,1731273040490,-500.0,0.00014798,2]
[341893834,1731273040499,-289.10927806,0.00014798,2]
[341893835,1731273040509,-500.0,0.00014798,2]
[341893836,1731273040518,-500.0,0.00014798,2]
[341893837,1731273040527,-500.0,0.00014798,2]
[341893838,1731273040537,-500.0,0.00014798,2]
[341893839,1731273040546,-500.0,0.00014798,2]
[341893840,1731273040555,-500.0,0.00014798,2]
[341893841,1731273040564,-350.78408478,0.00014798,2]
[341893842,1731273040573,-500.0,0.00014798,2]
[341893843,1731273040583,-500.0,0.00014798,2]
[341893844,1731273040592,-500.0,0.00014798,2]
[341893845,1731273040601,-500.0,0.00014798,2]
[341893846,1731273040610,-500.0,0.00014798,2]
[341893847,1731273040619,-500.0,0.00014798,2]
[341893848,1731273040629,-508.73493117,0.00014798,2]
[341893849,1731273040639,-500.0,0.00014798,2]
[341893850,1731273040648,-500.0,0.00014798,2]
[341893851,1731273040657,-500.0,0.00014798,2]
[341893852,1731273040666,-500.0,0.00014798,2]
[341893853,1731273040674,-500.0,0.00014798,2]
[341893854,1731273040685,-500.0,0.00014798,2]
[341893855,1731273040694,-271.05786735,0.00014798,2]
[341893856,1731273040703,-1734.22,0.00014798,2]
[341893857,1731273040712,-500.0,0.00014798,2]
[341893858,1731273040721,-500.0,0.00014798,2]
[341893859,1731273040730,-500.0,0.00014798,2]
[341893860,1731273040739,-716.93,0.00014798,2]
[341893861,1731273040748,-529.07,0.00014798,2]
[341893862,1731273040757,-500.0,0.00014798,2]
[341893863,1731273040766,-518.63,0.00014798,2]
[341893864,1731273040776,-500.0,0.00014798,2]
[341893865,1731273040785,-500.0,0.00014798,2]
[341893866,1731273040795,-436.06946038,0.00014798,2]
[341893867,1731273040804,-500.0,0.00014798,2]
[341893868,1731273040814,-500.0,0.00014798,2]
[341893869,1731273040823,-566.45,0.00014798,2]
[341893870,1731273040832,-336.60866126,0.00014798,2]
[341893871,1731273040841,-500.0,0.00014798,2]
[341893872,1731273040850,-500.0,0.00014798,2]
[341893873,1731273040859,-500.0,0.00014798,2]
[341893874,1731273040869,-500.0,0.00014798,2]
[341893875,1731273040878,-500.0,0.00014798,2]
[341893876,1731273040887,-500.0,0.00014798,2]
[341893877,1731273040897,-500.0,0.00014798,2]
[341893878,1731273040906,-500.0,0.00014798,2]
[341893879,1731273040915,-500.0,0.00014798,2]
[341893880,1731273040924,-201.0,0.00014798,2]
[341893881,1731273040935,-1010.0,0.000148,2]
[341893882,1731273040944,-1457.0,0.000148,5]
[341893883,1731273040953,-1000.0,0.00014838,2]
[341893884,1731273040962,-500.0,0.00014888,2]
[341893885,1731273040971,-235.6323173,0.00014888,2]
[341893886,1731273040980,-500.0,0.00014888,2]
[341893887,1731273040989,-500.0,0.00014888,2]
[341893888,1731273040999,-500.0,0.00014888,2]
[341893889,1731273041008,-500.0,0.00014888,2]
[341893890,1731273041020,-181.17575501,0.00014888,2]
[341893891,1731273041029,-159.62032102,0.00014889,2]
[341893892,1731273041038,-500.0,0.00014889,2]
[341893893,1731273041047,-500.0,0.00014889,2]
[341893894,1731273041056,-771.84,0.00014889,2]
[341893895,1731273041069,-783.04,0.00014889,2]
[341893896,1731273041079,-500.0,0.00014889,2]
[341893897,1731273041088,-500.0,0.00014889,2]
[341893898,1731273041098,-500.0,0.00014889,2]
[341893899,1731273041108,-500.0,0.00014889,2]
[341893900,1731273041118,-512.95197813,0.00014889,2]
[341893901,1731273041127,-500.0,0.00014889,2]
[341893902,1731273041136,-500.0,0.00014889,2]
[341893903,1731273041145,-500.0,0.00014889,2]
[341893904,1731273041154,-500.0,0.00014889,2]
[341893905,1731273041163,-500.0,0.00014889,2]
[341893906,1731273041172,-636.38,0.00014889,2]
[341893907,1731273041184,-767.05,0.00014889,2]
[341893908,1731273041193,-936.75,0.00014889,2]
[341893909,1731273041202,-500.0,0.00014889,2]
[341893910,1731273041211,-500.0,0.00014889,2]
[341893911,1731273041220,-514.49,0.00014889,2]
[341893912,1731273041230,-500.0,0.00014889,2]
[341893913,1731273041239,-500.0,0.00014889,2]
[341893914,1731273041248,-500.0,0.00014889,2]
[341893915,1731273041258,-500.0,0.00014889,2]
[341893916,1731273041267,-500.0,0.00014889,2]
[341893917,1731273041276,-500.0,0.00014889,2]
[341893918,1731273041285,-386.71441983,0.00014889,2]
[341893919,1731273041294,-500.0,0.00014889,2]
[341893920,1731273041302,-568.43,0.00014889,2]
[341893921,1731273041312,-1664.12,0.00014889,2]
[341893922,1731273041320,-512.65,0.00014889,2]
[341893923,1731273041329,-500.0,0.00014889,2]
[341893924,1731273041337,-500.0,0.00014889,2]
[341893925,1731273041346,-568.70587859,0.00014889,2]
[341893926,1731273041355,-1525.25,0.00014889,2]
[341893927,1731273041364,-500.0,0.00014889,2]
[341893928,1731273041373,-500.0,0.00014889,2]
[341893929,1731273041382,-500.0,0.00014889,2]
[341893930,1731273041391,-820.07,0.00014889,2]
[341893931,1731273041400,-500.0,0.00014889,2]
[341893932,1731273041409,-500.0,0.00014889,2]
[341893933,1731273041419,-1289.08,0.00014889,2]
[341893934,1731273041427,-627.67,0.00014889,2]
[341893935,1731273041440,-500.11,0.00014889,2]
[341893936,1731273041449,-2022.78,0.00014889,2]
[341893937,1731273041459,-957.35,0.00014889,2]
[341893938,1731273041468,-1760.48,0.00014889,2]
[341893939,1731273041477,-909.08,0.00014889,2]
[341893940,1731273041486,-500.0,0.00014889,2]
[341893941,1731273041495,-500.0,0.00014889,2]
[341893942,1731273041505,-739.23,0.00014889,2]
[341893943,1731273041514,-844.55,0.00014889,2]
[341893944,1731273041523,-500.0,0.00014889,2]
[341893945,1731273041532,-508.68900945,0.00014889,2]
[341893946,1731273041541,-601.51,0.00014889,2]
[341893947,1731273041550,-550.59,0.00014889,2]
[341893948,1731273041559,-1127.87,0.00014889,2]
[341893949,1731273041567,-559.17,0.00014889,2]
[341893950,1731273041576,-500.0,0.00014889,2]
[341893951,1731273041585,-500.0,0.00014889,2]
[341893952,1731273041595,-500.0,0.00014889,2]
[341893953,1731273041603,-690.49,0.00014889,2]
[341893954,1731273041612,-500.0,0.00014889,2]
[341893955,1731273041621,-500.0,0.00014889,2]
[341893956,1731273041630,-500.0,0.00014889,2]
[341893957,1731273041639,-500.0,0.00014889,2]
[341893958,1731273041647,-1161.8,0.00014889,2]
[341893959,1731273041655,-273.51548402,0.00014889,2]
[341893960,1731273041664,-500.0,0.00014889,2]
[341893961,1731273041673,-500.0,0.00014889,2]
[341893962,1731273041684,-500.0,0.00014889,2]
[341893963,1731273041693,-2382.56,0.00014889,2]
[341893964,1731273041702,-501.09,0.00014889,2]
[341893965,1731273041711,-885.08,0.00014889,2]
[341893966,1731273041741,-500.0,0.00014889,2]
[341893967,1731273041750,-500.0,0.00014889,2]
[341893968,1731273041760,-500.0,0.00014889,2]
[341893969,1731273041768,-550.86,0.00014889,2]
[341893970,1731273041777,-500.0,0.00014889,2]
[341893971,1731273041786,-500.0,0.00014889,2]
[341893972,1731273041795,-500.0,0.00014889,2]
[341893973,1731273041804,-525.45,0.00014889,2]
[341893974,1731273041813,-2643.28,0.00014889,2]
[341893975,1731273041823,-500.0,0.00014889,2]
[341893976,1731273041832,-1086.91,0.00014889,2]
[341893977,1731273041841,-500.0,0.00014889,2]
[341893978,1731273041850,-722.35,0.00014889,2]
[341893979,1731273041859,-500.0,0.00014889,2]
[341893980,1731273041868,-500.0,0.00014889,2]
[341893981,1731273041877,-922.77,0.00014889,2]
[341893982,1731273041886,-500.0,0.00014889,2]
[341893983,1731273041896,-500.0,0.00014889,2]
[341893984,1731273041905,-511.39355473,0.00014889,2]
[341893985,1731273041914,-500.0,0.00014889,2]
[341893986,1731273041923,-500.0,0.00014889,2]
[341893987,1731273041933,-500.0,0.00014889,2]
[341893988,1731273041942,-442.42734634,0.00014889,2]
[341893989,1731273041951,-552.85,0.00014889,2]
[341893990,1731273041960,-500.0,0.00014889,2]
[341893991,1731273041969,-1028.03,0.00014889,2]
[341893992,1731273041978,-500.0,0.00014889,2]
[341893993,1731273041988,-500.0,0.00014889,2]
[341893994,1731273041996,-725.36,0.00014889,2]
[341893995,1731273042006,-769.7,0.00014889,2]
[341893996,1731273042019,-500.0,0.00014889,2]
[341893997,1731273042028,-1140.01,0.00014889,2]
[341893998,1731273042038,-2532.58,0.00014889,2]
[341893999,1731273042047,-500.0,0.00014889,2]
[341894000,1731273042060,-1047.83,0.00014889,2]
[341894001,1731273042070,-530.92,0.00014889,2]
[341894002,1731273042079,-1579.5,0.00014889,2]
[341894003,1731273042088,-500.0,0.00014889,2]
[341894004,1731273042098,-2940.27,0.00014889,2]
[341894005,1731273042107,-2436.49,0.00014889,2]
[341894006,1731273042117,-2768.55,0.00014889,2]
[341894007,1731273042126,-500.0,0.00014889,2]
[341894008,1731273042136,-500.0,0.00014889,2]
[341894009,1731273042145,-2220.35,0.00014889,2]
[341894010,1731273042155,-3123.33,0.00014889,2]
[341894011,1731273042164,-500.0,0.00014889,2]
[341894012,1731273042173,-500.0,0.00014889,2]
[341894013,1731273042185,-191.5511713,0.00014889,2]
[341894014,1731273042193,-500.0,0.00014889,2]
[341894015,1731273042203,-500.0,0.00014889,2]
[341894016,1731273042212,-500.0,0.00014889,2]
[341894017,1731273042222,-500.0,0.00014889,2]
[341894018,1731273042231,-500.0,0.00014889,2]
[341894019,1731273042240,-500.0,0.00014889,2]
[341894020,1731273042250,-500.0,0.00014889,2]
[341894021,1731273042259,-500.0,0.00014889,2]
[341894022,1731273042269,-500.0,0.00014889,2]
[341894023,1731273042278,-500.0,0.00014889,2]
[341894024,1731273042287,-500.0,0.00014889,2]
[341894025,1731273042297,-500.0,0.00014889,2]
[341894026,1731273042307,-260.80637051,0.00014889,2]
[341894027,1731273042317,-4631.57,0.00014889,2]
[341894028,1731273042326,-595.58,0.00014889,2]
[341894029,1731273042335,-5818.05705336,0.00014889,2]
[341894030,1731273042344,-2100.28,0.00014889,2]
[341894031,1731273042353,-500.0,0.00014889,2]
[341894032,1731273042362,-4541.7,0.00014889,2]
[341894033,1731273042372,-4756.43,0.00014889,2]
[341894034,1731273042381,-500.0,0.00014889,2]
[341894035,1731273042390,-6389.63,0.00014889,2]
[341894036,1731273042399,-1885.06171883,0.00014889,2]
[341894037,1731273042408,-551.17,0.00014889,2]
[341894038,1731273042417,-745.63,0.00014889,2]
[341894039,1731273042427,-730.62,0.00014889,2]
[341894040,1731273042438,-3722.69,0.00014889,2]
[341894041,1731273042448,-5818.05705334,0.00014894,2]
[341894042,1731273042457,-1885.06171882,0.00014894,2]
[341894043,1731273042466,-5818.05705334,0.00014899,2]
[341894044,1731273042476,-1885.06171882,0.00014899,2]
[341894045,1731273042486,-500.0,0.00014973,2]
[341894046,1731273042495,-1145.016,0.00014973,2]
[341894047,1731273042505,-165.077,0.00014973,2]
[341894048,1731273042515,-500.0,0.00014985,2]
[341894049,1731273042524,-500.0,0.00014986,2]
[341894050,1731273042534,-2092.75,0.00014986,2]
[341894051,1731273042544,-510.56,0.00014986,2]
[341894052,1731273042554,-577.24476779,0.00014986,2]
[341894053,1731273042564,-500.0,0.00014986,2]
[341894055,1731273042573,-2214.99,0.00014986,2]
[341894057,1731273042583,-1937.99,0.00014986,2]
[341894059,1731273042592,-1534.75,0.00014986,2]
[341894061,1731273042601,-1941.54,0.00014986,2]
[341894063,1731273042610,-1560.65,0.00014986,2]
[341894065,1731273042619,-500.0,0.00014986,2]
[341894066,1731273042628,-500.0,0.00014986,2]
[341894068,1731273042638,-500.0,0.00014986,2]
[341894069,1731273042647,-728.5,0.00014986,2]
[341894070,1731273042657,-2043.94,0.00014986,2]
[341894071,1731273042666,-760.39,0.00014986,2]
[341894072,1731273042675,-3690.94,0.00014986,2]
[341894073,1731273042685,-843.58,0.00014986,2]
[341894074,1731273042694,-1454.43,0.00014986,2]
[341894075,1731273042703,-500.0,0.00014986,2]
[341894076,1731273042712,-3829.65,0.00014986,2]
[341894077,1731273042721,-834.77,0.00014986,2]
[341894078,1731273042730,-662.14,0.00014986,2]
[341894079,1731273042739,-2060.6,0.00014986,2]
[341894080,1731273042747,-500.0,0.00014986,2]
[341894081,1731273042756,-1847.86,0.00014986,2]
[341894082,1731273042765,-500.0,0.00014987,2]
[341894083,1731273042774,-500.0,0.00014987,2]
[341894084,1731273042783,-771.84,0.00014987,2]
[341894085,1731273042793,-783.04,0.00014987,2]
[341894086,1731273042802,-500.0,0.00014987,2]
[341894089,1731273042812,-500.0,0.00014987,2]
[341894092,1731273042822,-500.0,0.00014987,2]
[341894094,1731273042832,-500.0,0.00014987,2]
[341894096,1731273042841,-500.0,0.00014987,2]
[341894097,1731273042849,-500.0,0.00014987,2]
[341894099,1731273042858,-500.0,0.00014987,2]
[341894101,1731273042868,-500.0,0.00014987,2]
[341894103,1731273042878,-500.0,0.00014987,2]
[341894106,1731273042887,-636.38,0.00014987,2]
[341894108,1731273042897,-767.05,0.00014987,2]
[341894110,1731273042906,-500.0,0.00014987,2]
[341894113,1731273042916,-500.0,0.00014987,2]
[341894115,1731273042925,-936.75,0.00014987,2]
[341894116,1731273042938,-500.0,0.00014987,2]
[341894117,1731273042947,-500.0,0.00014987,2]
[341894119,1731273042956,-500.0,0.00014987,2]
[341894121,1731273042966,-500.0,0.00014987,2]
[341894122,1731273042975,-500.0,0.00014987,2]
[341894124,1731273042985,-514.49,0.00014987,2]
[341894126,1731273042995,-500.0,0.00014987,2]
[341894128,1731273043005,-500.0,0.00014987,2]
[341894129,1731273043018,-333.31892801,0.00014987,2]
[341894131,1731273043218,-500.0,0.00014987,2]
[341894132,1731273043228,-500.0,0.00014987,2]
[341894133,1731273043238,-770.68,0.00014987,2]
[341894134,1731273043249,-500.0,0.00014987,2]
[341894135,1731273043259,-500.0,0.00014987,2]
[341894136,1731273043270,-500.0,0.00014987,2]
[341894137,1731273043279,-568.43,0.00014987,2]
[341894138,1731273043289,-1658.94,0.00014987,2]
[341894139,1731273043298,-1664.12,0.00014987,2]
[341894140,1731273043308,-512.65,0.00014987,2]
[341894141,1731273043318,-2211.19,0.00014987,2]
[341894142,1731273043327,-500.0,0.00014987,2]
[341894143,1731273043337,-500.0,0.00014987,2]
[341894144,1731273043347,-500.0,0.00014987,2]
[341894145,1731273043356,-1525.25,0.00014987,2]
[341894146,1731273043366,-500.0,0.00014987,2]
[341894147,1731273043376,-2281.93,0.00014987,2]
[341894148,1731273043387,-500.0,0.00014987,2]
[341894149,1731273043396,-500.0,0.00014987,2]
[341894150,1731273043405,-820.07,0.00014987,2]
[341894151,1731273043415,-500.0,0.00014987,2]
[341894152,1731273043424,-500.0,0.00014987,2]
[341894153,1731273043436,-1289.08,0.00014987,2]
[341894154,1731273043446,-992.29,0.00014987,2]
[341894155,1731273043456,-500.11,0.00014987,2]
[341894156,1731273043466,-627.67,0.00014987,2]
[341894158,1731273043475,-2022.78,0.00014987,2]
[341894159,1731273043484,-500.0,0.00014987,2]
[341894162,1731273043494,-957.35,0.00014987,2]
[341894164,1731273043504,-1760.48,0.00014987,2]
[341894165,1731273043514,-909.08,0.00014987,2]
[341894167,1731273043523,-500.0,0.00014987,2]
[341894169,1731273043533,-1278.52,0.00014987,2]
[341894171,1731273043542,-500.0,0.00014987,2]
[341894173,1731273043552,-739.23,0.00014987,2]
[341894175,1731273043561,-844.55,0.00014987,2]
[341894177,1731273043571,-500.0,0.00014987,2]
[341894179,1731273043580,-644.42,0.00014987,2]
[341894182,1731273043590,-601.51,0.00014987,2]
[341894184,1731273043600,-550.59,0.00014987,2]
[341894186,1731273043611,-1127.87,0.00014987,2]
[341894188,1731273043620,-500.0,0.00014987,2]
[341894190,1731273043629,-559.17,0.00014987,2]
[341894192,1731273043638,-500.0,0.00014987,2]
[341894194,1731273043648,-500.0,0.00014987,2]
[341894195,1731273043657,-500.0,0.00014987,2]
[341894197,1731273043667,-690.49,0.00014987,2]
[341894199,1731273043676,-500.0,0.00014987,2]
[341894202,1731273043688,-544.73,0.00014987,2]
[341894204,1731273043698,-3290.7,0.00014987,2]
[341894206,1731273043707,-1646.22,0.00014987,2]
[341894208,1731273043716,-500.0,0.00014987,2]
[341894210,1731273043726,-500.0,0.00014987,2]
[341894212,1731273043735,-1161.8,0.00014987,2]
[341894214,1731273043744,-766.34,0.00014987,2]
[341894215,1731273043754,-4341.09,0.00014987,2]
[341894218,1731273043763,-500.0,0.00014987,2]
[341894220,1731273043773,-500.0,0.00014987,2]
[341894222,1731273043783,-3111.24,0.00014987,2]
[341894224,1731273043792,-500.0,0.00014987,2]
[341894226,1731273043802,-864.8,0.00014987,2]
[341894227,1731273043811,-501.09,0.00014987,2]
[341894229,1731273043820,-2382.56,0.00014987,2]
[341894231,1731273043829,-4022.83,0.00014987,2]
[341894233,1731273043839,-885.08,0.00014987,2]
[341894235,1731273043848,-500.0,0.00014987,2]
[341894237,1731273043857,-500.0,0.00014987,2]
[341894239,1731273043866,-474.2,0.00014987,2]
[341894241,1731273043876,-557.14,0.00014987,2]
[341894243,1731273043885,-860.82,0.00014987,2]
[341894245,1731273043894,-550.86,0.00014987,2]
[341894247,1731273043903,-500.0,0.00014987,2]
[341894249,1731273043913,-500.0,0.00014987,2]